Cogmind - Beta 16.1 @@@ ROGUE MODE // 2026.02.26 @ 15:20:48 Player: Fleshy Vegetable Bird Result: Destroyed by G-47 Trooper with Particle Gun Performance ------------- Evolutions (0) 0 Regions Visited (2) 400 Robots Destroyed (33) 165 Value Destroyed (751) 751 Prototype IDs (0) 0 Alien Tech Used (0) 0 Bonus (0) 0 TOTAL SCORE: 1316 Bonus ------- None Cogmind --------- Core Integrity 0/250 Matter 236/300 Energy 250/250 System Corruption 0% Temperature Cool (9) Movement Treading (480) Ox4 Location -10/Subcaves Parts ------- > --- POWER (1) -------- Ion Engine > --- PROPULSION (2) --- Light Treads Wheel > --- UTILITY (2) ------ Huge Storage Unit Light Armor Plating > --- WEAPON (2) ------- Subdweller Machine Gun Barrage Gun > --- INVENTORY (25) --- Subdweller Power Source Subdweller Monowheel Subdweller Monowheel High-capacity Matter Pod (200) Subdweller Optics Grenade Launcher Ripper Shrapnel Trap Piercing Trap SUBCON Basin (Full) Peak State ------------ > --- POWER ------------ Ion Engine > --- PROPULSION ------- Light Treads Wheel > --- UTILITY ---------- Huge Storage Unit Light Armor Plating > --- WEAPON ----------- Barrage Gun Ripper > --- INVENTORY -------- Subdweller Power Source Wheel Subdweller Monowheel High-capacity Matter Pod Subdweller Optics Subdweller Machine Gun Barrage Gun Grenade Launcher Shrapnel Trap Piercing Trap SUBCON Basin [Rating: 31] Favorites ----------- Power Ion Engine Engine Ion Engine Propulsion Wheel Treads Light Treads Wheel Wheel Utility Huge Storage Unit Device Seismic Detector Storage Huge Storage Unit Protection Light Armor Plating Weapon Barrage Gun Energy Gun Medium Laser Ballistic Gun Barrage Gun Ballistic Cannon Light Cannon Launcher Grenade Launcher Slashing Weapon Ripper Build | -11 -10 -10 ------- Run | Yrd Mat Sub Slots Evolved . | . . . Power . | . . . Propulsion . | . . . Utility . | . . . Weapon . | . . . Parts Attached 32 | 7 13 12 Power 3 | 1 1 1 Engine 3 | 1 1 1 Core . | . . . Reactor . | . . . Propulsion 11 | 2 7 2 Treads 5 | . 3 2 Leg . | . . . Wheel 6 | 2 4 . Hover . | . . . Flight . | . . . Utility 7 | 2 2 3 Device 1 | 1 . . Storage 3 | 1 2 . Processor . | . . . Hackware . | . . . Protection 3 | . . 3 Artifact . | . . . Weapon 11 | 2 3 6 Energy Gun 1 | 1 . . Energy Cannon . | . . . Ballistic Gun 6 | 1 2 3 Ballistic Cannon 2 | . 1 1 Launcher 1 | . . 1 Special Weapon . | . . . Impact Weapon . | . . . Slashing Weapon 1 | . . 1 Piercing Weapon . | . . . Special Melee Weapon . | . . . Unidentified Prototypes . | . . . Parts Lost 5 | . 1 4 Power 1 | . . 1 Propulsion 1 | . . 1 Utility 1 | . . 1 Weapon 2 | . 1 1 Highest Loss Streak 1 | . 1 1 To Critical Strikes . | . . . Average Backups 12 | 4 10 13 Power 2 | . 1 2 Propulsion 3 | 1 3 3 Utility 2 | . 1 2 Weapon 4 | 1 3 4 Tool/Special . | . . . Unused Backups 17 | . 3 14 Power 4 | . . 4 Propulsion 4 | . 1 3 Utility 3 | . 1 2 Weapon 6 | . 1 5 Tool/Special . | . . . Average Slot Usage (%) 99 | . 99 99 Engine 14 | . 14 14 Treads 14 | . 13 14 Wheel 13 | . 14 13 Device 2 | . 14 . Storage 14 | . 14 14 Protection 11 | . . 13 Ballistic Gun 19 | . 17 19 Ballistic Cannon 5 | . 6 5 Slashing Weapon 1 | . . 1 Peak Build Rating 31 | 7 8 31 Average Rating 18 | 5 7 21 On Entrance 5 | . 7 8 Avg Prop Armor Cover (%) 9 | 10 11 8 Naked Turns . | . . . Heaviest Build 94 | 14 91 94 Greatest Support 40 | 20 40 40 Greatest Overweight (x) 31 | 4 9 31 Average Overweight (x) 7 | 1 3 9 Largest Inventory Capacity 25 | 8 25 25 Average Capacity 22 | 7 15 25 Most Carried 25 | 8 15 25 Average Carried 20 | 4 10 23 Final Capacity 25 | 8 25 25 Final Carried 24 | 8 15 24 Class Distribution -------------------- 100% | Mutant Dominant Class ---------------- Mutant | -10/Materials Mutant | -10/Subcaves Resources | -11 -10 -10 ----------- Run | Yrd Mat Sub Matter Collected 1395 | 295 334 766 Remotely . | . . . Salvage Created 972 | 200 425 347 Parts 72 | 16 28 28 Haulers Intercepted 2 | . 2 . Recyclers Shooed 3 | 2 1 . Parts Field Recycled . | . . . Retrieved Matter . | . . . Parts Self-Destructed 11 | . . 11 Prevented . | . . . Parts Restored . | . . . Kills | -11 -10 -10 ------- Run | Yrd Mat Sub Combat Hostiles Destroyed 22 | . 9 13 Guns 15 | . 9 6 Cannons 4 | . . 4 AOE 3 | . . 3 Classes Destroyed 8 | 2 4 2 Tunneler 7 | 7 . . Hauler 2 | . 2 . Recycler 1 | 1 . . Watcher 1 | . 1 . Swarmer 7 | . 3 4 Grunt 8 | . 6 2 Sentry 1 | . . 1 Subdweller 6 | . . 6 Best Kill Streak 5 | 3 5 4 Combat Bots Only 5 | . 5 4 Max Kills in Single Turn 2 | 1 1 2 Gunslinging . | . . . Exploded 2 | . . 2 Melee . | . . . Uniques/NPCs Destroyed . | . . . Combat | -11 -10 -10 -------- Run | Yrd Mat Sub Hostile Shots Fired 160 | . 53 107 Missed 58 | . 15 43 Hits 102 | . 38 64 Projectile 102 | . 38 64 AOE 3 | . . 3 Critical Strikes 3 | . 3 . Damage Taken 1639 | . 437 1202 Core 257 | . 104 153 Absorbed by Shields . | . . . Core Remaining (%) 100 | 100 . . Volleys Fired 137 | 25 62 50 Largest 2 | 2 2 2 Hottest 70 | 70 70 60 Shots Fired 256 | 50 108 98 Gun 212 | 50 108 54 Cannon 40 | . . 40 Launcher 4 | . . 4 Special . | . . . Kinetic 202 | 25 83 94 Thermal 50 | 25 25 . Explosive 4 | . . 4 Electromagnetic . | . . . Robot Hit Streak 18 | 11 7 18 Robot Miss Streak 6 | 6 5 3 Penetration Max . | . . . Secondary Targets 1 | . . 1 Max Gunslinging Chain 1 | . . 1 Shots Hit Robots 158 | 24 68 66 Core Hits 52 | 10 24 18 Critical Kills . | . . . Critical Parts Destroyed . | . . . Critical Strikes 6 | 3 1 2 Burn 4 | 3 1 . Blast 2 | . . 2 Melee Attacks 35 | . . 35 Impact . | . . . Slashing 35 | . . 35 Piercing . | . . . Sneak Attacks . | . . . Combat Hostiles . | . . . Follow-up Attacks . | . . . Damage Inflicted 2215 | 275 750 1190 Guns 1629 | 275 749 605 Cannons 411 | . . 411 Explosions 174 | . . 174 Melee . | . . . Ramming 1 | . 1 . Kinetic 1652 | 87 549 1016 Thermal 388 | 188 200 . Explosive 174 | . . 174 Electromagnetic . | . . . Impact . | . . . Slashing . | . . . Piercing . | . . . Highest Corruption . | . . . Average Corruption . | . . . Corruption Purged . | . . . Corruption Blocked . | . . . Overload Shots . | . . . Overflow Damage 30 | . . 30 Projectiles . | . . . Explosions 30 | . . 30 Melee . | . . . Knockbacks 6 | . . 6 Impact . | . . . Kinetic 6 | . . 6 Secondary . | . . . Self-Inflicted Damage 60 | . . 60 Shots 3 | . . 3 Rammed 1 | . 1 . Targets Rammed 1 | . 1 . Kicked . | . . . Crushed . | . . . Highest Temperature 211 | 110 211 . Average Temperature 54 | 33 75 . Received Heat Transfer 453 | . 252 201 Effects 2 | . 2 . Interference 2 | . 2 . Siege Activations . | . . . Martial Activations . | . . . Shielding Activations . | . . . Robots Disrupted . | . . . Combat Hostiles . | . . . Robots Corrupted . | . . . Combat Hostiles . | . . . Parts Fried . | . . . Impact Corruptions . | . . . Robots Melted . | . . . Combat Hostiles . | . . . Parts Melted 3 | 1 2 . Heat Transferred 1443 | 777 666 . Parts Sabotaged . | . . . Parts Stolen . | . . . Parts Stripped . | . . . Power Chain Reactions . | . . . Alert | -11 -10 -10 ------- Run | Yrd Mat Sub Maximum Alert Level . | . . . Low Security (%) 100 | 100 100 . Level 1 . | . . . Level 2 . | . . . Level 3 . | . . . Level 4 . | . . . Level 5 . | . . . High Security . | . . . Max Security . | . . . Peak Influence 86 | 10 86 . Initial . | . . . Average 19 | 1 25 . Influence Increases 517 | 40 267 210 Destroy 0b10 Robot/C 320 | . 180 140 Destroy 0b10 Robot/NC 55 | 40 15 . Destroy Leader 56 | . 46 10 Successful Hack 10 | . 10 . Disable Machine 15 | . 15 . Destroy Structure 1 | . 1 . Lose Combat Pursuer 60 | . . 60 Influence Decreases 517 | 40 267 210 Time Decay 497 | 40 257 200 Lost Part 20 | . 10 10 Squads Dispatched 1 | . 1 . Investigation 1 | . 1 . Extermination . | . . . Reinforcement . | . . . Assault . | . . . Garrison . | . . . Intercept . | . . . Searches Triggered . | . . . Construction Impeded . | . . . Haulers Reinforced . | . . . Active Scanning Responses . | . . . Cargo Convoy Interrupts . | . . . Stealth | -11 -10 -10 --------- Run | Yrd Mat Sub Distress Signals . | . . . Communications Jammed . | . . . Distress Signals . | . . . Times Spotted 38 | . 15 23 Peak Tracking Total 6 | . 6 6 Tactical Retreats 6 | . . 6 Traps | -11 -10 -10 ------- Run | Yrd Mat Sub Traps Triggered 1 | . 1 . Indirectly . | . . . Trap Hack Attempts . | . . . Triggered . | . . . Disarmed . | . . . Reprogrammed . | . . . Reused . | . . . Traps Extracted . | . . . Installed . | . . . Triggered . | . . . Most Traps Carried 2 | . . 2 Machines | -11 -10 -10 ---------- Run | Yrd Mat Sub Machines Disabled 1 | . 1 . Max in Single Turn 1 | . 1 . Machines Repaired . | . . . Machines Dismantled . | . . . Machines Sabotaged . | . . . Overloaded Fab Kills . | . . . Hacking | -11 -10 -10 --------- Run | Yrd Mat Sub Machines Accessed 8 | . 5 3 Terminals 5 | . 5 . Fabricators . | . . . Repair Stations . | . . . Recycling Units . | . . . Scanalyzers . | . . . Garrison Access . | . . . Total Hacks 23 | . 16 7 Successful 11 | . 4 7 Failed 11 | . 11 . Catastrophic 1 | . 1 . Database Lockouts 1 | . 1 . Manual 19 | . 19 . Terminals 16 | . 16 . Fabricators . | . . . Repair Stations . | . . . Recycling Units . | . . . Scanalyzers . | . . . Garrison Access . | . . . Terminal Hacks 9 | . 2 7 Record 5 | . . 5 Robot Analysis 1 | . 1 . Open Door 1 | . . 1 Locate Traps 1 | . 1 . Release Object 1 | . . 1 Fabricator Hacks . | . . . Repair Station Hacks . | . . . Recycling Unit Hacks . | . . . Scanalyzer . | . . . Garrison Access Hacks . | . . . Unauthorized Hacks 2 | . 2 . Terminals 2 | . 2 . Botnet 2 | . 2 . Fabricators . | . . . Repair Stations . | . . . Recycling Units . | . . . Scanalyzers . | . . . Garrison Access . | . . . Data Cores Recovered . | . . . Used . | . . . Hacking Detections 5 | . 5 . Full Trace Events . | . . . Feedback Events . | . . . Feedback Blocked . | . . . Robot Schematics Acquired . | . . . Robots Built . | . . . Authchips . | . . . Time . | . . . Total Robot Build Rating . | . . . Part Schematics Acquired . | . . . Parts Built . | . . . Authchips . | . . . Time . | . . . Total Part Build Rating . | . . . Part Studies Acquired . | . . . Parts Repaired . | . . . Time . | . . . Parts Recycled . | . . . Recycled Matter . | . . . Retrieved Matter . | . . . Retrieved Components . | . . . Parts Scanalyzed . | . . . Part Schematics Acquired . | . . . Parts Damaged . | . . . Bothacking | -11 -10 -10 ------------ Run | Yrd Mat Sub Used RIF Installer . | . . . Robots Hacked . | . . . Non-combat . | . . . Combat . | . . . Robot Hacks Applied . | . . . Relay Couplers Released . | . . . Fabnet Peak Effective % . | . . . Robots Rewired . | . . . Allies Hacked . | . . . Hacks Repelled . | . . . Allies | -11 -10 -10 -------- Run | Yrd Mat Sub Total Allies . | . . . Largest Group . | . . . Highest-Rated Group . | . . . Highest-Rated Ally . | . . . Total Orders . | . . . Ally Attacks . | . . . Total Damage . | . . . Kills . | . . . Allies Corrupted . | . . . Allies Melted . | . . . Intel | -11 -10 -10 ------- Run | Yrd Mat Sub Active Infowar (turns) 1003 | 111 883 9 Seismic 1003 | 111 883 9 Robot Analysis Total 1 | . 1 . Derelict Logs Recovered 2 | . . 2 Drone Launches . | . . . Drone Recoveries . | . . . Exploration | -11 -10 -10 ------------- Run | Yrd Mat Sub Turns Passed 5107 | 274 908 3925 Spaces Moved 1902 | 136 473 1293 Core 89 | 58 . 31 Treads 96 | . 31 65 Legs . | . . . Wheels 1717 | 78 442 1197 Hover . | . . . Flight . | . . . Fastest Speed 50 | 50 80 200 Average Speed 222 | 136 142 261 Slowest Speed 1600 | 250 215 1600 Overloaded Moves . | . . . Propulsion Burnouts . | . . . Robots Hopped . | . . . Potential Cave-ins . | . . . Cave-ins Triggered . | . . . Exploration Rate (%) 52 | 6 78 72 Regions Visited 2 Branch Regions 1 Pre-discovered Areas . | . . . Known Exits Taken . | . . . Unknown Exits Taken 2 | 1 1 . Scrap Searched 9 | . . 9 Spaces Dug 10 | . . 10 Terrain Destroyed 31 | . . 31 Melee 10 | . . 10 Projectile . | . . . AOE 21 | . . 21 Terrain Rammed . | . . . Walls Destroyed . | . . . Machines Disabled . | . . . Actions | -11 -10 -10 --------- Run | Yrd Mat Sub Total 2481 | 176 609 1696 Wait 283 | . 34 249 Move 1900 | 135 472 1293 Hop . | . . . Pick Up 43 | 9 14 20 Fast Attach 8 | 6 2 . Attach 5 | 1 . 4 Detach . | . . . Swap 35 | . 12 23 Drop 34 | . 12 22 Fire 137 | 25 62 50 Melee 35 | . . 35 Ram . | . . . Kick . | . . . Crush 1 | . 1 . Escape Stasis . | . . . Rewire . | . . . Trap . | . . . Miscellaneous . | . . . Route ------- -11/Scrapyard -10/Materials (discovered 4 exits: [*Mat x2] / [*Min] / *Sub) -10/Subcaves (discovered 1 exit: [*Mat]) History --------- Turn | Location | Event 10 | -11/Scrapyard | Discovered new exit (range 14) 275 | -11/Scrapyard | Entered Materials 319 | -10/Materials | Build established: Mutant 590 | -10/Materials | Discovered new exit (range 7) 670 | -10/Materials | Discovered new exit (range 12) 756 | -10/Materials | Central database locked down 836 | -10/Materials | Discovered new exit (range 16) 1172 | -10/Materials | Discovered new exit (range 6) 1183 | -10/Materials | Entered Subcaves 1184 | -10/Subcaves | Approached by a straggling Scientist 1188 | -10/Subcaves | Learned location of 1 exit from Materials 1202 | -10/Subcaves | Discovered new exit (range 11) 1627 | -10/Subcaves | Visited Clippyterm 1634 | -10/Subcaves | Learned Factory fabricator intel 1634 | -10/Subcaves | Learned Research security intel 1696 | -10/Subcaves | Core integrity fell below 50% 2172 | -10/Subcaves | Shifting Twisted Machinery released Battle Rifle 2271 | -10/Subcaves | Shifting Twisted Machinery released Flamer 2280 | -10/Subcaves | Learned 4 Materials zone layouts 2371 | -10/Subcaves | A swath of the cavern ceiling suddenly collapsed 2964 | -10/Subcaves | Found SUBCON Basin 4928 | -10/Subcaves | Shifting Twisted Machinery released Flamer 5086 | -10/Subcaves | Core integrity fell below 20% 5108 | -10/Subcaves | Destroyed by G-47 Trooper with Particle Gun Last Messages --------------- 03534_ Acquired Sub. Power Source. 03592_ CG-NQC(R) destroyed. 03596_ Acquired 30 matter. 03600_ Dropped Wheel. 03600_ Acquired Wheel. 03601_ Dropped Wheel. 03618_ Acquired Sub. Monowheel. 04298_ Acquired 12 matter. 04786_ Acquired 35 matter. 04788_ Acquired 2 matter. Flamer falls loose from the Twisted Machinery. 05076_ Acquired 40 matter. 05080_ Acquired 8 matter. 05085_ Acquired 1 matter. 05090_ 7K-G6K(R) destroyed. 05090_ Switching to secondary target: 7S-2Y7(R). 05094_ Barrage Gun destroyed. 05107_ 7S-2Y7(R) affixes Scrap Shield Fragment to Scrap Shield. 05108_ Subatomizers dissect the Sub. Optics. Map ----- +----------------------------------------------------+ | ??????????????#??#"""" ????????## ##???????????? | | ???????????? ##"### #????????# ##??????????? | | ????????????"""" #????????# #??????????? | | ???????????? """ #?????????# #??????????? | | ?????????????#"## # #????????## #??????????? | | ?????????????##???### #????????# #??????????? | | ????????????##"##???# ########?# ##??????????? | | ???????????##"" ##### ### #???????????? | | ??????????##""" ## ##??????????? | | ??????????#"""" #??????????? | | ??????????######### ### #??????????? | | ?????????#####?#### ##?## ##??????????? | | ????????## ## ##?## ##???????????? | | ????????# # ### ##???????????? | | ????????## # ## #???????????? | | ?????????# # ### #???????????? | | ?????????# # ### #???????????? | | ?????????# ## #?# #???????????? | | ?????????# ## #?# #???????????? | | ?????????# ## ##?## #???????????? | | ?????????## ### #??### ##??????????? | | ??????????## #### ##???# #??????????? | | ???????????## ### #???## # ####??????????? | | ????????????# #?# #???## ## #?????????????? | | ????????????####?#### ###?# ###?????????????? | | ????????????????????# @### #???????????????? | | ????????????????????# ! ##???????????????? | | ????????????????????# #????????????????? | | ????????????????????##!!R ##???????????????? | | ?????????????????????##g ##??????????????? | | ??????????????????## #*# #??????????????? | | ??????????????????#" g ##??????????????? | | ??????????????????"" ####????????????? | | ??????????????????"" # # ##???????????? | | ??????????????????" ### #???????????? | | ?????????????????? ?## #???????????? | | ??????????????????#### #???????????? | | ????????????????????# #???????????? | | ????????????????????# ## #???????????? | | ????????????????????# #?# ##???????????? | | ????????????????????###??## #????????????? | | ??????????????????????????## ## ##????????????? | | ???????????????????????????###?## ##????????????? | | ????????????????????????????????# #????????????? | | ?????????????????????????????#### #????????????? | | ?????????????????????????????# #????????????? | | ?????????????????????????????# ##????????????? | | ???????????????????????????### #?????????????? | | ???????????????????????????# ##?????????????? | | ???????????????????????????# #####???????????? | +----------------------------------------------------+ Best States ------------- Heat Dissipation 25 Energy Generation 10 Energy Capacity 250 Matter Stores 300 Matter Capacity 300 Sight Range 16 Terrain Scan Density 10 Armor Coverage 150 Evasion (%) 44 Recoil Reduction 2 Item Schematics ----------------- None Robot Schematics ------------------ None Fabricated ------------ Nothing Repaired ---------- Nothing Studied --------- None Alien Tech Used ----------------- None Achievements -------------- None Challenges ------------ None Game ------ Seed RemoteLaunchShredder Manual? 0 Play Time 00:30:32 Cumulative 409.1 hours Start 2026.02.26 @ 13:57:20 End 2026.02.26 @ 15:20:48 Sessions 2 Manual Loads 0 Difficulty Rogue Special Mode None Game No. 458 Rogue 458 Adventurer 0 Explorer 0 Win Type - Total 6 Types 3/1/1/1/0/0/0/0/0/0 Lore% 76 Gallery% 68 Achievement% 44 Wizard Run 0 Options --------- Layout 1 ASCII 0 Keyboard 0 Movement Numpad Keybinds 0 Fullscreen 1 Font 32/SmallcapsGlow Map View 50x35 Zoom Use 0% Tactical HUD 1 Map Filters NONE Filters NONE Steam 1 RUN: e39b5d38-ac90-46f8-9c80-1ff38b1ac71e